Workbook

Sheet полность учежд (2)
B1: Свод ДДУ | C1: 2016г
B3: Свод ДДУ 303 (содержание воспитанников)
A4: ДопКР | B4: Экономическая классифик.расходов | F4: Сад 22
A6: 303 | B6: Прочие услуги | E6: 226 | F6: =SUM(F7:F8) -> 10,882.00
A7: 303 | B7: Подписка | E7: 226,001 | F7: ='[1]226.1'!$B$19 -> 10,000.00
A8: 303 | B8: з/пл нешт наст муз инстр | E8: 226,000 | F8: ='[1]226000'!$C$19 -> 882.00
A9: 303 | B9: Увелич.стоимости материал.запасов | E9: 340 | F9: =SUM(F10:F14) -> 4,037,373.08
A10: 303 | B10: Закупка мягкого инвентаря | E10: 340,002 | F10: =[1]Мягк!$R$20 -> 189,248.21
A11: 303 | B11: Питание | E11: 340,005 | F11: 340,005
A12: 303 | B12: Питание (родит) | E12: 340,005 | F12: ='[1]Питание + род'!AC44 -> 3,278,462.85
A13: 303 | B13: Закупка медикаментов | E13: 340,006 | F13: =[1]Медик!$F$22 -> 43,916.00
A14: 303 | B14: обеспеч.хоз-бытового назначения | E14: 340,000 | F14: ='[1]340,4'!$M$81 -> 185,741.02
B15: Увелич.стоимости материал.запасов | E15: 340 | F15: =F16+F17+F18+F19 -> 607,883.29
B16: Закупка мягкого инвентаря | E16: 340002 | F16: =[1]Мягк!$S$20 -> 334,561.29
B17: Питание | E17: 340005 | F17: ='[1]Питание + род'!AE44 -> 190,000.00
B18: Закупка медикаментов | E18: 340006
B19: Порчие расходы | E19: 340000 | F19: ='[1]340,4'!$T$81 -> 83,322.00
A20: 304 | B20: Оплата услуг связи | E20: 221 | F20: ='[1]221'!$I$22 -> 5,371.20
A21: 304 | B21: Коммунальные услуги | E21: 223 | F21: =SUM(F22:F25) -> 857,830.99
A22: 304 | B22: оплата потребления электроэнергии | E22: 223,001 | F22: ='[1]223'!$G$21 -> 13,694.34
A23: 304 | B23: оплата потр.тепл.энергии(опл.отопления) | E23: 223,002 | F23: ='[1]223'!$C$21 -> 700,786.25
A24: 304 | B24: оплат потребления газа | E24: 223,003 | F24: ='[1]223'!$E$21 -> 0.00
A25: 304 | B25: оплата водоснабжения помещений | E25: 223,005 | F25: ='[1]223'!$L$21 -> 143,350.40
A26: 304 | B26: Услуги по содержанию имущества | E26: 225 | F26: =SUM(F27:F37) -> 54,139.03
A27: 304 | B27: вывоз мусора | E27: 225,002 | F27: ='[1]225.2'!$E$20 -> 8,510.00
A28: 304 | B28: дератизация | E28: 225,002 | F28: ='[1]225.2'!$G$20 -> 7,949.03
A29: 304 | B29: поверка газовых сигнализаторов, счетчиков газа | E29: 225,004
A30: 304 | B30: опрессовка систем отопления | E30: 225,004 | F30: ='[1]225.4'!$E$21 -> 0.00
A31: 304 | B31: выкачка нечистот | E31: 225,004 | F31: ='[1]225.4'!$G$21 -> 0.00
A32: 304 | B32: ТО газового хозяйства | E32: 225,004 | F32: ='[1]225.4'!$H$21 -> 0.00
A33: 304 | B33: работы и услуги по обеспеч.фенкцион.оборудов. | E33: 225,015 | F33: ='[1]225.15'!$H$21 -> 37,680.00
A34: 304 | B34: обслужив ОПС | E34: 225,001 | F34: ='[1]225000'!$H$20 -> 0.00
A35: 304 | B35: стрелец мониторинг | E35: 225,001 | F35: ='[1]225000'!$J$20 -> 0.00
A36: 304 | B36: замер сопротивления провод | E36: 225,000 | F36: ='[1]225000'!$M$20 -> 0.00
A37: 304 | B37: оплата текущего ремонта зданий сооруж. | E37: 225,007 | F37: ='[1]225.7'!$F$22 -> 0.00
A38: 304 | B38: Прочие услуги | E38: 226 | F38: =SUM(F39:F41) -> 16,308.53
A39: 304 | B39: Подписка | E39: 226,001 | F39: ='[1]226.1'!$C$19 -> 1,600.00
A40: 304 | B40: охрана КТС | E40: 226,004 | F40: ='[1]226000'!$J$19 -> 14,708.53
A41: 304 | B41: производственный контроль | E41: 226,000 | F41: ='[1]226000'!$N$19 -> 0.00
A42: 304 | B42: Увелич.стоимости материал.запасов | E42: 340 | F42: =SUM(F43:F44) -> 3,500.00
A43: 304 | B43: противопож.инвентарь | E43: 340,000 | F43: ='[1]340,4'!$W$81 -> 3,500.00
A44: 304 | B44: хоз-быт.обслуж | E44: 340,000 | F44: ='[1]340,4'!$AA$81 -> 0.00
A45: 308 | B45: Оплата услуг связи | E45: 221 | F45: ='[1]221'!$J$22 -> 3,193.80
A46: 308 | B46: Коммунальные услуги | E46: 223 | F46: =SUM(F47:F50) -> 271,002.98
A47: 308 | B47: оплата потребления электроэнергии | E47: 223,001 | F47: ='[1]223'!$X$21 -> 221,002.98
A48: 308 | B48: оплата потр.тепл.энергии(опл.отопления) | E48: 223,002 | F48: ='[1]223'!$T$21 -> 50,000.00
A49: 308 | B49: оплат потребления газа | E49: 223,003 | F49: ='[1]223'!$V$21 -> 0.00
A50: 308 | B50: оплата водоснабжения помещений | E50: 223,005 | F50: ='[1]223'!$AC$21 -> 0.00
A51: 308 | B51: Услуги по содержанию имущества | E51: 225 | F51: =SUM(F52:F68) -> 193,874.72
A52: 308 | B52: вывоз мусора | E52: 225,002 | F52: ='[1]225.2'!$N$20 -> 0.00
A53: 308 | B53: вывоз снега | E53: 225,002 | F53: ='[1]225.2'!$O$20 -> 7,000.00
A54: 308 | B54: поверка газовых сигнализаторов, счетчиков газа | E54: 225,004 | F54: ='[1]225.4'!$M$21 -> 0.00
A55: 308 | B55: очистка дым-вен каналов | E55: 225,004 | F55: ='[1]225.4'!$N$21 -> 30,000.00
A56: 308 | B56: опрессовка систем отопления | E56: 225,004 | F56: ='[1]225.4'!$O$21 -> 8,900.00
A57: 308 | B57: обслуживание кн видеонаблюдений\ | E57: 225,001 | F57: ='[1]225000'!$Z$20 -> 0.00
A58: 308 | B58: выкачка нечистот | E58: 225,004 | F58: ='[1]225.4'!$Q$21 -> 1,000.00
A59: 308 | B59: ТО газового хозяйства | E59: 225,004
A60: 308 | B60: ТО ИТП, приточной вентил,ПВ | E60: 225,004 | F60: ='[1]225.4'!$S$21 -> 70,800.00
A61: 308 | B61: пропитка чердач.помещений | E61: 225,000 | F61: ='[1]225000'!$U$20 -> 0.00
A62: 308 | B62: обслуживание КТС | E62: 225,001 | F62: ='[1]225000'!$V$20 -> 2,938.32
A63: 308 | B63: заправка огнетушителей | E63: 225,000 | F63: ='[1]225000'!$W$20 -> 3,150.00
A64: 308 | B64: обслужив ОПС | E64: 225,001 | F64: ='[1]225000'!$Y$20 -> 15,206.40
A65: 308 | B65: обслуживание приборов учета | E65: 225,000 | F65: ='[1]225.4'!$P$21 -> 14,880.00
A66: 308 | B66: стрелец мониторинг | E66: 225,001 | F66: ='[1]225000'!$AA$20 -> 24,000.00
A67: 308 | B67: монтаж контура заземления | E67: 225,000 | F67: ='[1]225000'!$AC$20 -> 8,000.00
A68: 308 | B68: замер сопротивления провод | E68: 225,000 | F68: ='[1]225000'!$AD$20 -> 8,000.00
A69: 308 | B69: Прочие услуги | E69: 226 | F69: =SUM(F70:F71) -> 10,605.00
A70: 308 | B70: производственный контроль | E70: 226,000 | F70: ='[1]226000'!$AA$19 -> 9,105.00
A71: 308 | B71: утилизация ламп | E71: 226,000 | F71: ='[1]226000'!$Z$19 -> 1,500.00
A72: 308 | B72: Увелич.стоимости материал.запасов | E72: 340 | F72: =SUM(F73:F78) -> 284,553.94
A73: 308 | B73: Закупка мягкого инвентаря | E73: 340,002 | F73: =[1]Мягк!$T$20 -> 114,488.50 | G73: =#REF!/2 -> 
A74: 308 | B74: противопож.инвентарь | E74: 340,000 | F74: ='[1]340,4'!$AC$81 -> 1,400.00
A75: 308 | B75: матер.для тек.ремонта | E75: 340,000 | F75: ='[1]340,4'!$AE$81 -> 28,000.00
A76: 308 | B76: обеспеч.сан-гигиен.обслуж (род.пл) | E76: 340,000 | F76: ='[1]340,4'!$S$81 -> 83,322.00
A77: 308 | B77: Канцеллярские расходы | E77: 340,000 | F77: ='[1]340,4'!$I$81 -> 24,793.44
A78: 308 | B78: хоз-быт.обслуж | E78: 340,000 | F78: ='[1]340,4'!$AG$81 -> 32,550.00
